{"text_format":"1","workbook":"xlsx","n_sheets":4,"sheets":["BP LOT1 2","BP LOT1","BP LOT2","Feuil1"],"not_rendered":{"charts":0,"images":1,"macros":1,"external_links":0,"defined_names":2,"comments":0,"pivot_tables":0},"unopened":[],"bounds":{"document_bytes":16777216,"sheet_cells":100000,"rows_first":2000,"rows_last":500,"rows_between":2000,"halvings":0,"cell_chars":16384,"cell_head_chars":4096},"cells_cut":0,"cells_raw":0,"read":"whole","date_system":"1900"}

{"sheet":"BP LOT1 2","index":0,"n_rows":97,"n_cols":4,"rows_kept":97,"cut":false,"hidden":false,"merged":[[0,2,2,3],[22,0,22,3],[25,0,25,3],[29,0,29,3],[45,1,47,1],[45,2,47,2],[45,3,47,3],[48,1,54,1],[48,2,54,2],[48,3,54,3],[55,1,61,1],[55,2,61,2],[55,3,61,3],[62,1,64,1],[62,2,64,2],[62,3,64,3],[65,1,74,1],[65,2,74,2],[65,3,74,3],[83,1,86,1],[83,2,86,2],[83,3,86,3],[76,1,79,1],[76,2,79,2],[76,3,79,3],[80,1,82,1],[80,2,82,2],[80,3,82,3]]}
[null,null,"DEVIS "]
[]
[]
[]
[]
[]
[]
[]
[]
[]
[]
[]
[]
[]
[]
["Référence :"]
["Date :"]
["Client :"]
["DEVIS N°:",21]
[]
[]
[]
["NETTOYAGE INDUSTRIEL PONCTUEL DE LOCAUX ET DE SITES "]
[]
[]
["MARCHE N° 159443 LOT 1  : PRESTATIONS DE NETTOYAGE DE LOCAUX"]
[]
[]
["DESIGNATIONS","Qtés indicatives (1) m²\n","Prix unitaire au m² (HT) (2)","Prix total (1 x 2)"]
["SOL"]
["Balayage humide des sols carrelés",5000,0.12,{"$f":"B31*C31","v":600}]
["Dépoussiérage et passage à la cire des parquets (cirage, lustrage)",2500,0.7,1750]
["Aspiration pour les sols en moquette et les tapis, les shampouiner",2500,0.7,1750]
["Lavage et désinfection des sols",5000,0.23,1150]
["Décapage des sols (mono-brosse, auto-laveuse,…)",4000,0.71,2840]
["Balayage et nettoyage de trottoirs devant les entrées des bâtiments et alentours",2500,0.17,425.00000000000006]
[]
["En cas d’inondation, de déjections ou autres aspiration des eaux sales et/ou des déchets puis nettoyage et désinfection complets de la pièce",11000,0.87,{"$f":"B38*C38","v":9570}]
[]
[]
[]
[]
[]
[]
["DESIGNATIONS","Nbre d'heure indicatif   (1)","Prix forfaitaire horaire (HT)   (2)","Prix Total (HT)          (1 x 2)"]
["·   Escalier",50,7.25,{"$f":"B46*C46","v":362.5}]
["Balayage humide et lavage des marches"]
["Essuyage des rampes et des plinthes"]
["·   Sanitaires",30,7.25,{"$f":"B49*C49","v":217.5}]
["Lavage, désinfection complets et désodorisation des  sanitaires"]
["Nettoyage et détartrage cuvettes, urinoirs, lavabos, miroirs, robinetterie"]
["Socle et balayette propre et désinfectés"]
["Vidage et garnissage des poubelles"]
["Lavage du sol"]
["Nettoyage des faïences murales"]
["·   Ascenseurs",20,7.25,{"$f":"B56*C56","v":145}]
["Nettoyage des claviers de sélection des ascenseurs"]
["Nettoyage des miroirs et des vitres"]
["Nettoyage des parois des cabines d’ascenseur"]
["Nettoyage des portes extérieures pour chaque étage"]
["Nettoyage des rainures des glissières de portes"]
["Nettoyage complet des sols selon revêtement"]
["·   Cuisines",20,7.25,{"$f":"B63*C63","v":145}]
["Nettoyage, dégraissement et désinfection des équipements de cuisine ou foyer (intérieur / extérieur)"]
["Lavage et désinfection des sols"]
["·       Bureaux, salles",850,7.25,{"$f":"B66*C66","v":6162.5}]
["Vidage des corbeilles à papiers"]
["-         Vidage et essuyage humide des cendriers"]
["Dépoussiérage  par essuyage humide des objets meublants"]
["Nettoyage spécifique des espaces bureau non encombré  et du mobilier de rangement"]
["Dépoussiérage  matériel informatique"]
["Désinfection des téléphones"]
["Nettoyage et détachage des sièges et chaises de bureau et des salles"]
["Lavage du sol"]
["Dépoussiérage des meubles hauts non encombrés"]
["DESIGNATIONS","Nbre d'heure indicatif   (1)","Prix forfaitaire horaire (HT)   (2)","Prix Total (HT)          (1 x 2)"]
["·   Parois ",50,7.25,{"$f":"B77*C77","v":362.5}]
["Nettoyage et lavage des portes, des fenêtres, des poignées et de la signalétique"]
["Dépoussiérage des surfaces murales"]
["Nettoyage des plinthes"]
["·   Vitrerie",80,7.25,{"$f":"B81*C81","v":580}]
["Enlèvement des traces sur les vitres"]
["Nettoyage complet des vitres (interne et externe "]
["·        Entretien des espaces extérieurs",50,7.25,{"$f":"B84*C84","v":362.5}]
["Balayage des espaces extérieurs (espaces libres)"]
["Ramassage des détritus sur tous les espaces libres et espaces verts"]
["Nettoyage du parking et des allées de jardin"]
[null,null,"TOTAL "]
[null,null,"TVA",{"$f":"D88*8.5/100","v":0}]
[null,null,"TTC B",{"$f":"SUM(D88:D89)","v":0}]
[]
[null,null,"TOTAUX HT (A + B)",{"$f":"D88+G39","v":0}]
[null,null,"TVA (A+ B)",{"$f":"D89+G40","v":0}]
[null,null,"TOTAUX TTC (A + B)",{"$f":"D90+G41","v":0}]
[]
["DATE :"]
["SIGNATURE ET CACHET :"]

{"sheet":"BP LOT1","index":1,"n_rows":97,"n_cols":4,"rows_kept":97,"cut":false,"hidden":true,"merged":[[0,2,2,3],[22,0,22,3],[25,0,25,3],[29,0,29,3],[45,1,47,1],[45,2,47,2],[45,3,47,3],[48,1,54,1],[48,2,54,2],[48,3,54,3],[55,1,61,1],[55,2,61,2],[55,3,61,3],[62,1,64,1],[62,2,64,2],[62,3,64,3],[65,1,74,1],[65,2,74,2],[65,3,74,3],[83,1,86,1],[83,2,86,2],[83,3,86,3],[76,1,79,1],[76,2,79,2],[76,3,79,3],[80,1,82,1],[80,2,82,2],[80,3,82,3]]}
[null,null,"DEVIS "]
[]
[]
[]
[]
[]
[]
["DIRECTION GENERALE DES SERVICES"]
[]
["Direction Générale Adjointe Chargée des Ressources de la Modernisation et de l’Évaluation des Politiques Publiques"]
[]
["Direction des Ressources Logistiques"]
[]
[]
[]
["Référence :"]
["Date :"]
["Client :"]
["DEVIS N°:",1]
[]
[]
[]
["NETTOYAGE INDUSTRIEL PONCTUEL DE LOCAUX ET DE SITES DU CONSEIL GENERAL DE LA MARTINIQUE "]
[]
[]
["MARCHE N° 159443 LOT 1  : PRESTATIONS DE NETTOYAGE DE LOCAUX"]
[]
[]
["DESIGNATIONS","Qtés indicatives (1) m²\n","Prix unitaire au m² (HT) (2)","Prix total (1 x 2)"]
["SOL"]
["Balayage humide des sols carrelés",5000,0.12,{"$f":"B31*C31","v":600}]
["Dépoussiérage et passage à la cire des parquets (cirage, lustrage)",2500,0.7,1750]
["Aspiration pour les sols en moquette et les tapis, les shampouiner",2500,0.7,1750]
["Lavage et désinfection des sols",5000,0.23,1150]
["Décapage des sols (mono-brosse, auto-laveuse,…)",4000,0.71,2840]
["Balayage et nettoyage de trottoirs devant les entrées des bâtiments et alentours",2500,0.17,425.00000000000006]
[]
["En cas d’inondation, de déjections ou autres aspiration des eaux sales et/ou des déchets puis nettoyage et désinfection complets de la pièce",11000,0.87,{"$f":"B38*C38","v":9570}]
[]
[]
[]
[]
[]
[]
["DESIGNATIONS","Nbre d'heure indicatif   (1)","Prix forfaitaire horaire (HT)   (2)","Prix Total (HT)          (1 x 2)"]
["·   Escalier",50,7.25,{"$f":"B46*C46","v":362.5}]
["Balayage humide et lavage des marches"]
["Essuyage des rampes et des plinthes"]
["·   Sanitaires",30,7.25,{"$f":"B49*C49","v":217.5}]
["Lavage, désinfection complets et désodorisation des  sanitaires"]
["Nettoyage et détartrage cuvettes, urinoirs, lavabos, miroirs, robinetterie"]
["Socle et balayette propre et désinfectés"]
["Vidage et garnissage des poubelles"]
["Lavage du sol"]
["Nettoyage des faïences murales"]
["·   Ascenseurs",20,7.25,{"$f":"B56*C56","v":145}]
["Nettoyage des claviers de sélection des ascenseurs"]
["Nettoyage des miroirs et des vitres"]
["Nettoyage des parois des cabines d’ascenseur"]
["Nettoyage des portes extérieures pour chaque étage"]
["Nettoyage des rainures des glissières de portes"]
["Nettoyage complet des sols selon revêtement"]
["·   Cuisines",20,7.25,{"$f":"B63*C63","v":145}]
["Nettoyage, dégraissement et désinfection des équipements de cuisine ou foyer (intérieur / extérieur)"]
["Lavage et désinfection des sols"]
["·       Bureaux, salles",850,7.25,{"$f":"B66*C66","v":6162.5}]
["Vidage des corbeilles à papiers"]
["-         Vidage et essuyage humide des cendriers"]
["Dépoussiérage  par essuyage humide des objets meublants"]
["Nettoyage spécifique des espaces bureau non encombré  et du mobilier de rangement"]
["Dépoussiérage  matériel informatique"]
["Désinfection des téléphones"]
["Nettoyage et détachage des sièges et chaises de bureau et des salles"]
["Lavage du sol"]
["Dépoussiérage des meubles hauts non encombrés"]
["DESIGNATIONS","Nbre d'heure indicatif   (1)","Prix forfaitaire horaire (HT)   (2)","Prix Total (HT)          (1 x 2)"]
["·   Parois ",50,7.25,{"$f":"B77*C77","v":362.5}]
["Nettoyage et lavage des portes, des fenêtres, des poignées et de la signalétique"]
["Dépoussiérage des surfaces murales"]
["Nettoyage des plinthes"]
["·   Vitrerie",80,7.25,{"$f":"B81*C81","v":580}]
["Enlèvement des traces sur les vitres"]
["Nettoyage complet des vitres (interne et externe "]
["·        Entretien des espaces extérieurs",50,7.25,{"$f":"B84*C84","v":362.5}]
["Balayage des espaces extérieurs (espaces libres)"]
["Ramassage des détritus sur tous les espaces libres et espaces verts"]
["Nettoyage du parking et des allées de jardin"]
[null,null,"TOTAL "]
[null,null,"TVA",{"$f":"D88*8.5/100","v":0}]
[null,null,"TTC B",{"$f":"SUM(D88:D89)","v":0}]
[]
[null,null,"TOTAUX HT (A + B)",{"$f":"D88+G39","v":0}]
[null,null,"TVA (A+ B)",{"$f":"D89+G40","v":0}]
[null,null,"TOTAUX TTC (A + B)",{"$f":"D90+G41","v":0}]
[]
["DATE :"]
["SIGNATURE ET CACHET :"]

{"sheet":"BP LOT2","index":2,"n_rows":46,"n_cols":4,"rows_kept":46,"cut":false,"hidden":true,"merged":[[35,2,38,2],[35,3,38,3],[25,1,34,1],[35,1,38,1],[4,0,4,3],[5,0,5,3],[0,0,0,3],[12,0,12,3],[14,0,15,3],[3,0,3,3],[9,0,10,3],[25,2,34,2],[25,3,34,3]]}
["MARCHE A PROCEDURE ADAPTEE DE FOURNITURES ET DE SERVICES"]
[]
[]
["COLLECTIVITE DE MARTINIQUE"]
["Rue GASTON DEFFERRE"]
["97201 FORT DE FRANCE"]
[]
[]
[]
["NETTOYAGE INDUSTRIEL PONCTUEL DE LOCAUX ET DE SITES DU CONSEIL GENERAL DE LA MARTINIQUE "]
[]
[]
["DEVIS"]
[]
["MARCHE N° 159444 LOT 2  : PRESTATIONS DE NETTOYAGE LORS DE MANIFESTATIONS"]
[]
[]
[]
["DIRECTION : ",null,"NOM DU RESPONSABLE : "]
["SERVICE :",null,"CORRESPONDANT : "]
["ADRESSE LIVRAISON : ",null,"N° DE POSTE : "]
["DATE DE LA COMMANDE : ",null,"DESTINATAIRE : "]
[]
[]
[null,"Nbre d'heure indicatif   (1)","Prix forfaitaire horaire (HT)  (2)","Prix Total (HT)   (1 x 2)"]
["·   Nettoyage avant et après manifestation",600,8.2899999999999991,{"$f":"B26*C26","v":4973.9999999999991}]
["Nettoyage des jardins"]
["Nettoyage des parkings et des allées extérieures"]
["Ramassage des petits déchets sur l’ensemble du site (y compris parking et pelouse)"]
["Nettoyage complet des sanitaires, des bureaux, des salles et de la cuisine"]
["Balayage humide des sols intérieurs et extérieurs"]
["Nettoyage des vitres et jalousies"]
["Dépoussiérage du mobilier"]
["Nettoyage des bars"]
["Rangement des chaises"]
["·       Nettoyage pendant manifestation",500,7.99,{"$f":"B36*C36","v":3995}]
["Ramassage des petits déchets sur l’ensemble du site"]
["Nettoyage des sanitaires"]
["Nettoyage humide des sols (en cas de nécessité)"]
[null,null,"TOTAL",{"$f":"SUM(D26:D36)","v":8969}]
[null,null,"TVA",{"$f":"D40*8.5/100","v":762.36500000000001}]
[null,null,"TTC",{"$f":"SUM(D40:D41)","v":9731.3649999999998}]
[]
[]
["DATE :"]
["SIGNATURE ET CACHET :"]

{"sheet":"Feuil1","index":3,"n_rows":0,"n_cols":0,"rows_kept":0,"cut":false,"hidden":false,"merged":[]}